[Event "CCT Julius Baer-D3 2024"]
[Site "Online"]
[Date "2024.09.27"]
[Round "2.5"]
[White "Gelfand, Boris"]
[Black "Korobov, Anton"]
[Result "1/2-1/2"]
[ECO "D78"]
[WhiteElo "2658"]
[BlackElo "2650"]
[Annotator "RC"]
[PlyCount "184"]
[EventDate "2024.09.25"]
[EventType "swiss"]
[EventCountry "NET"]
[SourceTitle "playchess.com"]
[Source "ChessBase"]
[SourceQuality "1"]
[TimeControl "600+2"]

1. Nf3 {[%emt 0:00:04]} d5 {[%emt 0:03:06]} 2. g3 {[%emt 0:00:04]} g6 {[%emt 0:00:03]} 3. Bg2 {[%emt 0:00:06]} Bg7 {[%emt 0:00:02]} 4. d4 {[%emt 0:00:05]} Nf6 {[%emt 0:00:04]} 5. O-O {[%emt 0:00:04]} O-O {[%emt 0:00:03]} 6. c4 {[%emt 0:00:03]} c6 {[%emt 0:00:04]} 7. Qa4 {[%emt 0:00:05]} Nfd7 {[%emt 0:00:15]} 8. cxd5 {[%emt 0:00:04]} Nb6 {[%emt 0:00:03]} 9. Qd1 {[%emt 0:00:08]} cxd5 {[%emt 0:00:03]} 10. Nc3 {[%emt 0:00:03]} Nc6 {[%emt 0:00:03]} 11. e3 {[%emt 0:00:02]} e6 {[%emt 0:00:07]} 12. b3 {[%emt 0:00:09]} a5 {[%emt 0:00:18]} 13. a4 {[%emt 0:00:39]} Re8 {[%emt 0:00:11]} 14. Ba3 {[%emt 0:00:04]} Nb4 {[%emt 0:00:03]} 15. Bxb4 {[%emt 0:00:13]} axb4 {[%emt 0:00:03]} 16. Na2 {[%emt 0:00:03]} Bf8 {[%emt 0:00:14]} 17. Qd2 {[%emt 0:00:05]} Qd6 {[%emt 0:00:44]} 18. Ne5 {[%emt 0:00:04]} Nd7 {[%emt 0:00:33]} 19. Nd3 {[%emt 0:00:04]} b5 {[%emt 0:00:11]} 20. Naxb4 {[%emt 0:00:22]} bxa4 {[%emt 0:00:03]} 21. Rxa4 {[%emt 0:00:35]} Rb8 {[%emt 0:00:10]} 22. Rc1 {[%emt 0:00:41]} Qb6 {[%emt 0:00:14]} 23. Nc6 {[%emt 0:01:03]} Qxb3 {[%emt 0:00:12]} 24. Raa1 {[%emt 0:00:10]} Rb7 {[%emt 0:00:18]} 25. Na5 {[%emt 0:00:11]} Qb6 {[%emt 0:00:13]} 26. Nxb7 {[%emt 0:00:04]} Qxb7 {[%emt 0:00:05]} 27. Qa5 {[%emt 0:00:15]} Bd6 {[%emt 0:00:12]} 28. Nc5 {[%emt 0:00:31]} Nxc5 {[%emt 0:00:07]} 29. dxc5 {[%emt 0:00:04]} Be5 {[%emt 0:00:04]} 30. c6 {[%emt 0:00:13]} Qe7 {[%emt 0:00:03]} 31. Rab1 {[%emt 0:00:05]} Bc7 {[%emt 0:00:03]} 32. Qc5 {[%emt 0:00:19]} Bd6 {[%emt 0:00:06]} 33. Qc3 {[%emt 0:00:12]} Bc7 {[%emt 0:00:10]} 34. Ra1 {[%emt 0:00:07]} h5 {[%emt 0:00:14]} 35. Ra7 {[%emt 0:00:10]} h4 {[%emt 0:00:05]} 36. Qa3 {[%emt 0:00:13]} Qd8 {[%emt 0:00:07]} 37. Ra8 {[%emt 0:00:31]} d4 {[%emt 0:00:21]} 38. exd4 {[%emt 0:00:16]} Qxd4 {[%emt 0:00:07]} 39. Qc3 {[%emt 0:00:04]} Qb6 {[%emt 0:00:15]} 40. Raa1 {[%emt 0:00:05]} Qb5 {[%emt 0:00:14]} 41. Qc5 {[%emt 0:00:13]} Qb2 {[%emt 0:00:05]} 42. Rcb1 {[%emt 0:00:16]} Qf6 {[%emt 0:00:06]} 43. Ra7 {[%emt 0:00:07]} Be5 {[%emt 0:00:03]} 44. Rd1 {[%emt 0:00:04]} Bb8 {[%emt 0:00:19]} 45. Ra4 {[%emt 0:00:13]} hxg3 {[%emt 0:00:05]} 46. hxg3 {[%emt 0:00:08]} Bc7 {[%emt 0:00:03]} 47. Ra7 {[%emt 0:00:10]} Bb8 {[%emt 0:00:04]} 48. Ra3 {[%emt 0:00:05]} Bc7 {[%emt 0:00:03]} 49. Rf3 {[%emt 0:00:06]} Qb2 {[%emt 0:00:16]} 50. Qd4 {[%emt 0:00:05]} Qxd4 {[%emt 0:00:08]} 51. Rxd4 {[%emt 0:00:04]} Kf8 {[%emt 0:00:06]} 52. Ra3 {[%emt 0:00:07]} e5 {[%emt 0:00:08]} 53. Rd2 {[%emt 0:00:04]} Be6 {[%emt 0:00:02]} 54. Ra7 {[%emt 0:00:12]} Rc8 {[%emt 0:00:04]} 55. Rb7 {[%emt 0:00:13]} Ke7 {[%emt 0:00:04]} 56. Bd5 {[%emt 0:00:06]} Bf5 {[%emt 0:00:05]} 57. Ra2 {[%emt 0:00:05]} f6 {[%emt 0:00:04]} 58. Bg2 {[%emt 0:00:11]} Kd6 {[%emt 0:00:06]} 59. Rd2+ {[%emt 0:00:03]} Kc5 {[%emt 0:00:03]} 60. Rd7 {[%emt 0:00:07]} Ba5 {[%emt 0:00:05]} 61. Rf7 {[%emt 0:00:06]} e4 {[%emt 0:00:06]} 62. Rxf6 {[%emt 0:00:04]} Bc3 {[%emt 0:00:05]} 63. Rff7 {[%emt 0:00:07]} Rxc6 {[%emt 0:00:03]} 64. Rbc7 {[%emt 0:00:03]} Be5 {[%emt 0:00:05]} 65. Rxc6+ {[%emt 0:00:04]} Kxc6 {[%emt 0:00:03]} 66. Ra7 {[%emt 0:00:06]} Kd6 {[%emt 0:00:03]} 67. Ra4 {[%emt 0:00:03]} e3 {[%emt 0:00:03]} 68. fxe3 {[%emt 0:00:08]} Bxg3 {[%emt 0:00:03]} 69. Ra6+ {[%emt 0:00:05]} Ke5 {[%emt 0:00:03]} 70. Ra5+ {[%emt 0:00:03]} Kf6 {[%emt 0:00:03]} 71. Bf3 {[%emt 0:00:03]} Bd6 {[%emt 0:00:04]} 72. Kg2 {[%emt 0:00:04]} Be6 {[%emt 0:00:02]} 73. Be4 {[%emt 0:00:04]} g5 {[%emt 0:00:03]} 74. Ra6 {[%emt 0:00:03]} Ke5 {[%emt 0:00:02]} 75. Bc6 {[%emt 0:00:04]} Bc5 {[%emt 0:00:02]} 76. Ra5 {[%emt 0:00:04]} Kd6 {[%emt 0:00:03]} 77. Be4 {[%emt 0:00:05]} Bxe3 {[%emt 0:00:03]} 78. Kf3 {[%emt 0:00:03]} Bf4 {[%emt 0:00:02]} 79. Bb7 {[%emt 0:00:03]} Ke7 {[%emt 0:00:02]} 80. Be4 {[%emt 0:00:04]} Kf6 {[%emt 0:00:02]} 81. Ra6 {[%emt 0:00:03]} Ke5 {[%emt 0:00:03]} 82. Ra5+ {[%emt 0:00:03]} Kf6 {[%emt 0:00:03]} 83. Bb7 {[%emt 0:00:03]} Be5 {[%emt 0:00:03]} 84. Bc6 {[%emt 0:00:04]} g4+ {[%emt 0:00:02]} 85. Kg2 {[%emt 0:00:02]} Bf5 {[%emt 0:00:03]} 86. Bd5 {[%emt 0:00:04]} Bf4 {[%emt 0:00:02]} 87. Bb7 {[%emt 0:00:03]} Be6 {[%emt 0:00:03]} 88. Bc6 {[%emt 0:00:03]} g3 {[%emt 0:00:02]} 89. Bb7 {[%emt 0:00:03]} Bf5 {[%emt 0:00:02]} 90. Bc6 {[%emt 0:00:03]} Be6 {[%emt 0:00:02]} 91. Bb7 {[%emt 0:00:03]} Bf5 {[%emt 0:00:02]} 92. Bc6 {[%emt 0:00:02]} Be6 {[%emt 0:00:03]} 1/2-1/2

[Event "CCT Julius Baer-D3 2024"]
[Site "Online"]
[Date "2024.09.27"]
[Round "2.5"]
[White "Yoo, Christopher Woojin"]
[Black "Niemann, Hans Moke"]
[Result "1-0"]
[ECO "D40"]
[WhiteElo "2603"]
[BlackElo "2733"]
[Annotator "TA"]
[PlyCount "77"]
[EventDate "2024.09.25"]
[EventType "swiss"]
[EventCountry "NET"]
[SourceTitle "playchess.com"]
[Source "ChessBase"]
[SourceQuality "1"]
[TimeControl "600+2"]

{[%evp 18,77,0,0,-18,-31,0,-2,18,13,8,0,31,0,33,19,18,5,11,14,19,7,8,8,56,71,56,77,179,175,180,162,170,178,364,381,380,129,222,74,73,72,62,72,72,66,73,66,73,74,174,81,78,87,95,83,463,104,111,85,969,957]} 1. Nf3 {[%emt 0:00:06]} d5 {[%emt 0:00:06]} 2. d4 {[%emt 0:00:05]} Nf6 {[%emt 0:03:10]} 3. c4 {[%emt 0:00:04]} e6 {[%emt 0:00:03]} 4. Nc3 {[%emt 0:00:04]} c5 {[%emt 0:00:03]} 5. e3 {[%emt 0:00:06]} Nc6 {[%emt 0:00:04]} 6. a3 {[%emt 0:00:03]} dxc4 {[%emt 0:00:03]} 7. Bxc4 {[%emt 0:00:04]} a6 {[%emt 0:00:02]} 8. Ba2 {[%emt 0:00:04]} b5 {[%emt 0:00:13]} 9. O-O {[%emt 0:00:03]} Bb7 {[%emt 0:00:03]} 10. d5 {[%emt 0:01:24]} exd5 {[%emt 0:00:06]} 11. Nxd5 {[%emt 0:00:03][%cal Oe3e4]} c4 {[%emt 0:00:11]} 12. e4 {[%emt 0:00:06]} Be7 {[%emt 0:00:07] The position is equal.} (12... Nxe4 $5 13. Bf4 (13. Re1 Ne7 $11) 13... Ne5 14. Bxe5 Qxd5 $15) 13. b3 {[%emt 0:00:21]} cxb3 {[%emt 0:00:40]} 14. Qxb3 {[%emt 0:00:05] Nxf6+ would kill now.} O-O {[%emt 0:00:05]} 15. Qd3 {[%emt 0:00:24]} Nxd5 {[%emt 0:00:11]} 16. exd5 {[%emt 0:00:04]} Na5 $1 {[%emt 0:00:18]} 17. Rd1 $40 {[%emt 0:00:27][%mdl 128] Black needs to defend precisely.} Bf6 {[%emt 0:00:04]} 18. Rb1 {[%emt 0:00:03]} Rc8 $1 {[%emt 0:00:02] [#]} 19. a4 $1 {[%emt 0:00:25]} Rc3 {[%emt 0:00:04]} 20. Qd2 {[%emt 0:00:28]} bxa4 {[%emt 0:00:19]} (20... Qc7 $11 {is more appropriate.} 21. Bb2 (21. axb5 Rc2 $17) 21... Rc2) 21. Bb2 {[%emt 0:00:16]} Nb3 {[%emt 0:00:14]} 22. Qf4 {[%emt 0:00:05]} (22. Bxc3 $2 Nxd2 23. Bxd2 Bxd5 24. Bxd5 Qxd5 $17) 22... Rc8 {[%emt 0:01:36]} (22... Qc7 $16 23. Qxa4 Nc5) 23. Ba3 $1 $18 {[%emt 0:00:09]} (23. Qxa4 $6 Nc5 24. Qa3 Bxb2 25. Qxb2 (25. Rxb2 Qf6 $14) 25... Ba8 $16) 23... Re8 {[%emt 0:00:31]} 24. Qxa4 {[%emt 0:00:04]} Na5 {[%emt 0:00:03]} 25. Re1 {[%emt 0:00:30] Hoping for Rxe8+.} Rxe1+ {[%emt 0:00:09]} (25... Bxd5 $2 26. Bxd5 (26. Qxe8+ Qxe8 27. Rxe8+ Rxe8 $18) 26... Rxe1+ 27. Rxe1 $18) (25... Bc3 26. Qxe8+ Qxe8 27. Rxe8+ Rxe8) 26. Rxe1 {[%emt 0:00:03]} h6 {[%emt 0:00:03]} 27. Rd1 {[%emt 0:00:33]} (27. Bb4 $18 {has better winning chances.}) 27... Ba8 {[%emt 0:00:12]} (27... Qc7 $16 {might work better.}) 28. Bb4 {[%emt 0:00:09]} (28. h3 $1 $18 {is the precise move to win.}) 28... Nc4 $16 {[%emt 0:00:04]} 29. Qxa6 {[%emt 0:00:11]} Nb2 {[%emt 0:00:03]} (29... Bxd5 $2 30. Rxd5 $18) 30. Re1 {[%emt 0:00:09] h3 is the strong threat.} Rb8 {[%emt 0:00:06]} 31. Ba5 {[%emt 0:00:12] White is much more active.} Qd7 {[%emt 0:00:03] [#]} 32. d6 $1 {[%emt 0:00:11]} Bc6 {[%emt 0:00:13][%cal Oc6b5] [#] White must now prevent ...Bb5!} 33. Bxf7+ $1 {[%emt 0:00:40]} Kh7 {[%emt 0:00:18]} (33... Kxf7 $2 34. Re7+ $18) (33... Kh8 $16) 34. Be6 {[%emt 0:00:09]} (34. Bc7 $18 Ra8 35. Qe2 Qxf7 36. Qc2+ Nd3 37. Qxd3+ (37. Qxc6 Ra3 $18) 37... Qg6 38. Qxg6+ Kxg6 39. Rd1) 34... Qxd6 {[%emt 0:00:03]} 35. Bf5+ {[%emt 0:00:03]} Kh8 {[%emt 0:00:04]} 36. h4 {[%emt 0:00:46]} Na4 $2 {[%emt 0:00:05][%mdl 8192]} (36... Qf4 $16) 37. Rc1 $2 {[%emt 0:00:24]} (37. Re6 $18 {and the rest is easy.} Qd1+ 38. Kh2 (38. Re1 Qd5 $18)) 37... Nc5 {[%emt 0:00:07]} 38. Qa7 {[%emt 0:00:04] Strongly threatening Bc7.} Bxf3 $4 {[%emt 0:00:04][%mdl 8192]} (38... Rb5 $16) 39. Bc7 {[%emt 0:00:07] Weighted Error Value: White=0.38/Black=0.45.  Loses game:     	---       	Black=2      Missed win:     	White=2     	---        Mistake:       	White=2     	Black=5      Inaccurate:     	White=1     	Black=2      OK:         	White=12    	Black=8      Best:        	White=2     	Black=6      Strong:       	White=3     	Black=2} ({Less strong is} 39. Qxc5 Qxc5 40. Rxc5 Be2 $14) ({Inferior is} 39. Rxc5 Rg8 40. Qc7 (40. gxf3 Bd4 $15) 40... Qd1+ 41. Kh2 Qd4 $11) (39. gxf3 Nb3 $16) 1-0

[Event "CCT Julius Baer-D3 2024"]
[Site "Online"]
[Date "2024.09.27"]
[Round "2.5"]
[White "Bharath Subramaniyam H"]
[Black "Navara, David"]
[Result "1-0"]
[ECO "C54"]
[WhiteElo "2561"]
[BlackElo "2681"]
[Annotator "TA"]
[PlyCount "159"]
[EventDate "2024.09.25"]
[EventType "swiss"]
[EventCountry "NET"]
[SourceTitle "playchess.com"]
[Source "ChessBase"]
[SourceQuality "1"]
[TimeControl "600+2"]

{[%evp 91,159,-8,-8,-42,-8,-12,0,0,0,0,0,0,0,0,0,0,0,0,0,0,0,0,0,0,8,8,8,-29987,8,8,8,8,76,76,76,72,76,76,76,76,76,76,76,76,76,76,76,76,76,76,77,77,77,77,77,76,77,77,84,84,84,84,84,83,83,83,84,84,84,84]} 1. e4 {[%emt 0:00:04]} e5 {[%emt 0:03:05]} 2. Nf3 {[%emt 0:00:04]} Nc6 {[%emt 0:00:02]} 3. Bc4 {[%emt 0:00:09]} Bc5 {[%emt 0:00:04]} 4. d3 {[%emt 0:00:03]} Nf6 {[%emt 0:00:02]} 5. O-O {[%emt 0:00:02]} O-O {[%emt 0:00:04]} 6. h3 {[%emt 0:00:02]} h6 {[%emt 0:00:03]} 7. Re1 {[%emt 0:00:04]} d6 {[%emt 0:00:03]} 8. c3 {[%emt 0:00:03]} a5 {[%emt 0:00:02] C54: Giuoco Piano: 4 c3 Nf6, main lines with 5 d4 and 5 d3.} 9. Bb3 {[%emt 0:00:21]} b5 {[%emt 0:00:04]} 10. d4 {[%emt 0:00:19]} Bb6 {[%emt 0:00:03]} 11. Be3 {[%emt 0:00:02]} a4 {[%emt 0:00:10]} 12. Bc2 {[%emt 0:00:03]} exd4 {[%emt 0:00:03]} 13. Nxd4 $146 {[%emt 0:00:03]} ({Predecessor:} 13. cxd4 Nb4 14. Nc3 Nxc2 15. Qxc2 Ba5 16. Bd2 Rb8 17. e5 dxe5 18. dxe5 Bxc3 19. Qxc3 {1-0 Firouzja,A (2749)-Ding,L (2791) Skilling op Prelim rapid 2020 (11)}) 13... Nxd4 {[%emt 0:00:05]} 14. cxd4 {[%emt 0:00:02]} Bb7 {[%emt 0:00:17]} 15. Nc3 {[%emt 0:00:03]} Ba5 {[%emt 0:00:14]} 16. Bd2 {[%emt 0:00:03]} Re8 {[%emt 0:00:04]} 17. f3 {[%emt 0:00:11]} Bb6 {[%emt 0:00:37]} 18. Be3 {[%emt 0:00:20]} Qd7 {[%emt 0:00:25]} 19. Qd2 {[%emt 0:00:20]} b4 {[%emt 0:00:12]} 20. Ne2 {[%emt 0:00:07]} c5 {[%emt 0:00:12]} 21. Red1 {[%emt 0:01:11]} Qe7 {[%emt 0:00:41]} 22. Ng3 {[%emt 0:00:09]} cxd4 {[%emt 0:00:05]} 23. Bf2 {[%emt 0:00:43]} d5 {[%emt 0:00:11]} 24. Nf5 {[%emt 0:00:07]} Qf8 {[%emt 0:00:03]} 25. exd5 {[%emt 0:01:20]} Nxd5 {[%emt 0:00:13]} 26. Qd3 {[%emt 0:00:08]} g6 {[%emt 0:00:06]} 27. Nxd4 {[%emt 0:00:10]} Nf4 {[%emt 0:00:10]} 28. Qb5 {[%emt 0:00:04]} Bxd4 {[%emt 0:00:04]} 29. Bxd4 {[%emt 0:00:02]} Re2 {[%emt 0:00:14]} 30. Bf2 {[%emt 0:00:21]} Bxf3 {[%emt 0:00:25]} 31. Bd3 {[%emt 0:00:10]} Rxb2 {[%emt 0:00:11]} 32. Qe5 {[%emt 0:00:26]} Rxf2 {[%emt 0:00:44]} 33. Kxf2 {[%emt 0:00:02]} Bxd1 {[%emt 0:00:03]} 34. Qxf4 {[%emt 0:00:03]} Qc5+ {[%emt 0:00:03]} 35. Qe3 {[%emt 0:00:07]} Qh5 {[%emt 0:00:14]} 36. g4 {[%emt 0:00:41]} Qh4+ {[%emt 0:00:20]} 37. Kg2 {[%emt 0:00:13]} Bxg4 {[%emt 0:00:03]} 38. hxg4 {[%emt 0:00:03]} Qxg4+ {[%emt 0:00:02]} 39. Qg3 {[%emt 0:00:11]} Qxg3+ {[%emt 0:00:03]} 40. Kxg3 {[%emt 0:00:02]} Rc8 {[%emt 0:00:03]} 41. Bb5 {[%emt 0:00:07]} Rc3+ {[%emt 0:00:05]} 42. Kf4 {[%emt 0:00:14]} b3 {[%emt 0:00:08]} 43. axb3 {[%emt 0:00:02]} axb3 {[%emt 0:00:02]} 44. Rb1 {[%emt 0:00:03]} Kg7 {[%emt 0:00:05]} 45. Ke4 {[%emt 0:00:02]} h5 {[%emt 0:00:06]} 46. Kd4 {[%emt 0:00:03]} Rg3 {[%emt 0:00:03]} 47. Bc4 {[%emt 0:00:02]} h4 {[%emt 0:00:03]} 48. Bxb3 {[%emt 0:00:03]} h3 {[%emt 0:00:03]} 49. Bd5 {[%emt 0:00:03]} f5 {[%emt 0:00:07]} 50. Ke5 {[%emt 0:00:07]} h2 {[%emt 0:00:08]} 51. Rb7+ {[%emt 0:00:41]} Kh6 {[%emt 0:00:03]} 52. Kf6 {[%emt 0:00:03]} Rd3 {[%emt 0:00:08]} 53. Rb2 {[%emt 0:00:09]} Rh3 {[%emt 0:00:10]} ({Inferior is} 53... Rxd5 54. Rxh2#) 54. Bh1 $1 {[%emt 0:00:05]} Kh5 {[%emt 0:00:04]} 55. Rg2 {[%emt 0:00:04]} f4 {[%emt 0:00:08]} 56. Rg5+ {[%emt 0:00:07]} Kh4 {[%emt 0:00:03]} 57. Rxg6 {[%emt 0:00:06]} f3 {[%emt 0:00:12]} 58. Kf5 {[%emt 0:00:09]} f2 {[%emt 0:00:03]} 59. Rg4+ {[%emt 0:00:03]} Kh5 {[%emt 0:00:02]} 60. Rf4 {[%emt 0:00:02]} Rg3 {[%emt 0:00:12]} 61. Rxf2 {[%emt 0:00:03]} Rg5+ {[%emt 0:00:02]} (61... Kh4 $1 $11) 62. Kf4 $16 {[%emt 0:00:03]} Rg4+ {[%emt 0:00:02]} 63. Kf3 {[%emt 0:00:06]} Kg5 {[%emt 0:00:04]} 64. Rxh2 {[%emt 0:00:05]} (64. Rb2 {is interesting.} Rh4 65. Kg3 Rh7 66. Rb1) 64... Rh4 {[%emt 0:00:05] [#]} 65. Rg2+ $1 {[%emt 0:00:02]} Kf5 {[%emt 0:00:05]} 66. Rg1 {[%emt 0:00:03]} Rh3+ {[%emt 0:00:03]} 67. Ke2 {[%emt 0:00:11]} Rh4 {[%emt 0:00:02]} 68. Bf3 {[%emt 0:00:05]} Rf4 {[%emt 0:00:02]} 69. Ke3 {[%emt 0:00:03]} Rh4 {[%emt 0:00:02]} 70. Ra1 {[%emt 0:00:03]} Ke5 {[%emt 0:00:03]} 71. Ra5+ {[%emt 0:00:03]} Kf6 {[%emt 0:00:02]} 72. Be4 {[%emt 0:00:02]} Rh2 {[%emt 0:00:04]} 73. Kf4 {[%emt 0:00:04]} Rf2+ {[%emt 0:00:03]} 74. Bf3 {[%emt 0:00:02]} Rb2 {[%emt 0:00:02]} 75. Ra6+ {[%emt 0:00:03]} Ke7 {[%emt 0:00:02]} 76. Ke5 {[%emt 0:00:02]} Rd2 {[%emt 0:00:06]} 77. Bd5 {[%emt 0:00:03]} Re2+ {[%emt 0:00:03]} 78. Be4 {[%emt 0:00:03]} Re1 {[%emt 0:00:02]} 79. Ra7+ {[%emt 0:00:03]} Ke8 {[%emt 0:00:02]} 80. Kd5 {[%emt 0:00:02]} 1-0